bitfinex/quotes_SOLUSD_20250406
["timestamp","ask_amount","ask_price","bid_price","bid_amount"]
[1743947106547,27.79613357,114.89,114.88,0.03]
[1743947106751,47.15230844,114.89,114.88,0.03]
[1743947106948,46.65230844,114.89,114.88,0.03]
[1743947107150,19.50359395,114.89,114.88,0.03]
[1743947107339,8.22,114.89,114.88,0.03]
[1743947110053,8.22,114.89,114.88,12.322]
[1743947110252,8.22,114.89,114.88,16.6121]
[1743947110457,19.99505599,114.93,114.88,16.6121]
[1743947110635,11.14143238,114.93,114.89,18.64964886]
[1743947110840,8.22,114.96,114.89,18.64964886]
[1743947111065,8.22,114.96,114.9,0.28432314]
[1743947111361,11.14143238,114.97,114.9,0.42648471]
[1743947111535,8.22,114.98,114.92,18.933972]
[1743947113360,8.22,114.98,114.91,16.5821]
[1743947113859,8.22,114.98,114.92,18.64964886]
[1743947114459,8.22,114.98,114.91,16.5821]
[1743947114959,8.22,114.98,114.92,18.64964886]
[1743947115462,8.22,114.98,114.91,16.5821]
[1743947116269,8.22,114.98,114.92,18.64964886]
[1743947116667,8.22,114.98,114.91,16.5821]
[1743947116844,0.14216157,114.97,114.91,16.5821]
[1743947117043,0.14216157,114.97,114.92,0.03]
[1743947117263,8.22,114.98,114.92,0.03]
[1743947117852,0.42648471,114.97,114.92,0.03]
[1743947118048,26.0,114.94,114.92,0.03]
[1743947118253,8.24,114.93,114.92,0.03]
[1743947119476,8.26,114.96,114.92,0.03]
[1743947120279,0.42648471,114.95,114.92,0.03]
[1743947120464,0.14216157,114.95,114.92,0.03]
[1743947121175,26.0,114.93,114.92,0.03]
[1743947121853,34.3,114.93,114.92,0.03]
[1743947124178,8.3,114.93,114.92,0.03]
[1743947124551,25.95851709,114.93,114.92,0.03]
[1743947124752,0.14216157,114.89,114.88,0.03]
[1743947124984,27.37613357,114.89,114.88,0.03]
[1743947125353,33.46883357,114.89,114.88,0.03]
[1743947125556,33.46883357,114.89,114.8,4.4081]
[1743947125557,26.0,114.86,114.8,4.4081]
[1743947125865,26.0,114.82,114.8,4.4081]
[1743947126186,8.74648471,114.81,114.8,0.03]
[1743947126384,27.39613357,114.81,114.8,0.03]
[1743947126557,26.14216157,114.77,114.73,0.86648217]
[1743947126757,8.36,114.76,114.73,0.86648217]
[1743947127162,26.0,114.74,114.73,0.86648217]
[1743947127364,26.14216157,114.74,114.73,0.86648217]
[1743947127870,26.0,114.76,114.73,0.86648217]
[1743947128070,34.38,114.76,114.73,0.86648217]
[1743947128275,26.0,114.76,114.73,0.86648217]
[1743947128471,8.44,114.75,114.73,0.86648217]
[1743947129379,8.46,114.78,114.73,0.86648217]
[1743947129685,8.46,114.78,114.74,4.3968]
[1743947131870,8.46,114.78,114.75,12.096]
[1743947132262,0.14216157,114.77,114.75,12.096]
[1743947133067,8.46,114.78,114.75,12.096]
[1743947134568,34.48,114.8,114.75,12.096]
[1743947134770,8.48,114.82,114.76,18.64964886]
[1743947136991,8.48,114.82,114.75,12.096]
[1743947138293,8.48,114.82,114.76,18.64964886]
[1743947138497,8.48,114.82,114.75,12.096]
[1743947138693,0.14216157,114.81,114.75,12.096]
[1743947139001,26.0,114.79,114.75,12.096]
[1743947139175,8.5,114.78,114.75,12.096]
[1743947140999,8.5,114.78,114.74,4.3968]
[1743947141286,14.5987,114.78,114.74,4.3968]
[1743947141496,0.42648471,114.77,114.74,4.3968]
[1743947141811,0.14216157,114.77,114.74,4.3968]
[1743947142679,8.5,114.78,114.74,4.3968]
[1743947143187,14.5987,114.78,114.74,4.3968]
[1743947143595,8.5,114.78,114.74,4.3968]
[1743947144077,8.563,114.78,114.74,4.3968]
[1743947144279,0.063,114.78,114.74,4.3968]
[1743947147783,26.0,114.77,114.74,4.3968]
[1743947147999,8.52,114.76,114.74,4.3968]
[1743947148595,26.0,114.74,114.73,0.89648217]
[1743947149030,26.14216157,114.74,114.73,0.89648217]
[1743947149311,26.42648471,114.74,114.73,0.89648217]
[1743947149482,45.07613357,114.74,114.73,0.89648217]
[1743947149884,51.17683357,114.74,114.73,0.89648217]
[1743947150418,32.52718471,114.74,114.73,0.89648217]
[1743947150619,51.17683357,114.74,114.73,0.89648217]
[1743947150792,26.0,114.65,114.57,13.1686]
[1743947150996,0.14216157,114.69,114.59,30.0]
[1743947151317,8.56,114.68,114.59,30.0]
[1743947151535,8.56,114.67,114.59,30.0]
[1743947151697,26.0,114.64,114.59,30.0]
[1743947151896,0.14216157,114.66,114.59,30.0]
[1743947151897,8.56,114.63,114.59,30.0]
[1743947152087,8.56,114.63,114.59,29.0]
[1743947152596,8.56,114.62,114.58,6.1089]
[1743947152800,26.0,114.66,114.59,18.64964886]
[1743947153118,8.58,114.67,114.59,18.64964886]
[1743947154006,8.58,114.67,114.59,24.75794886]
[1743947157228,8.58,114.67,114.58,6.1092]
[1743947157531,8.58,114.67,114.59,18.64964886]
[1743947158203,26.0,114.64,114.57,13.1686]
[1743947158409,8.56,114.63,114.57,37.92794886]
[1743947158921,8.56,114.63,114.57,19.2783]
[1743947159631,8.54,114.62,114.57,19.2783]
[1743947159995,8.54,114.62,114.57,13.1686]
[1743947161213,0.14216157,114.61,114.57,13.1686]
[1743947162030,26.0,114.59,114.56,4.7421]
[1743947162324,0.14216157,114.53,114.49,12.1775]
[1743947162524,26.0,114.49,114.37,6.1204]
[1743947162716,8.58,114.48,114.39,30.0]
[1743947162914,26.0,114.49,114.39,30.0]
[1743947163114,8.58,114.48,114.39,30.0]
[1743947163504,0.14216157,114.47,114.39,30.0]
[1743947163705,11.14143238,114.47,114.39,30.0]
[1743947163905,26.0,114.45,114.39,30.0]
[1743947164123,8.73192194,114.44,114.39,30.0]
[1743947164520,26.0,114.42,114.39,30.0]
[1743947164724,0.42648471,114.44,114.36,13.36170404]
[1743947164945,0.42648471,114.45,114.36,13.36170404]
[1743947165249,0.42648471,114.43,114.36,13.36170404]
[1743947165534,12.02,114.46,114.36,19.48270404]
[1743947165704,26.0,114.46,114.37,17.2366]
[1743947165905,19.07613357,114.49,114.37,17.7366]
[1743947166150,18.933972,114.51,114.4,26.5]
[1743947166310,0.14216157,114.48,114.4,0.5]
[1743947166640,15.56,114.55,114.4,26.5]
[1743947166847,0.14216157,114.54,114.43,0.5]
[1743947167127,21.73008343,114.54,114.43,0.5]
[1743947167422,1.58792186,114.54,114.47,43.7366]
[1743947167624,20.0,114.6,114.47,43.2366]
[1743947167929,6.1076,114.61,114.47,43.7366]
[1743947168144,8.19552186,114.61,114.47,17.2366]
[1743947168430,0.5,114.6,114.47,17.2366]
[1743947168602,6.1076,114.61,114.47,17.2366]
[1743947168603,0.64216157,114.58,114.47,17.2366]
[1743947168806,0.14216157,114.51,114.43,5.0203]
[1743947169007,0.42648471,114.49,114.43,5.0203]
[1743947169316,26.0,114.45,114.42,12.2405]
[1743947169507,6.25506157,114.52,114.42,12.2405]
[1743947169707,26.0,114.5,114.42,12.2405]
[1743947170030,26.0,114.49,114.47,0.03]
[1743947170727,26.42648471,114.48,114.47,0.03]
[1743947170930,45.07613357,114.48,114.47,0.03]
[1743947171115,26.0,114.44,114.38,5.0203]
[1743947171312,26.0,114.43,114.38,5.0203]
[1743947171832,26.0,114.42,114.38,5.0203]
[1743947172427,26.0,114.44,114.38,5.0203]
[1743947172629,26.0,114.43,114.38,5.0203]
[1743947173230,26.0,114.45,114.38,5.0203]
[1743947173629,0.42648471,114.44,114.38,5.0203]
[1743947173835,26.0,114.41,114.38,5.0203]
[1743947174503,26.0,114.37,114.36,13.36170404]
[1743947174707,26.42648471,114.37,114.36,13.36170404]
[1743947174935,26.0,114.37,114.36,13.36170404]
[1743947175131,26.42648471,114.37,114.36,13.36170404]
[1743947175332,26.0,114.39,114.36,13.07740404]
[1743947175540,19.07613357,114.37,114.36,13.07740404]
[1743947175836,0.42648471,114.37,114.36,13.07740404]
[1743947176037,26.0,114.38,114.36,13.07740404]
[1743947176624,0.28432314,114.37,114.36,13.07740404]
[1743947176822,0.42648471,114.37,114.36,13.07740404]
[1743947177023,26.0,114.38,114.36,13.07740404]
[1743947177221,0.28432314,114.41,114.36,13.07740404]
[1743947177420,26.0,114.38,114.36,13.07740404]
[1743947177711,0.42648471,114.37,114.36,13.07740404]
[1743947178023,0.42648471,114.37,114.29,12.7488]
[1743947178024,26.0,114.34,114.29,12.7488]
[1743947179332,26.0,114.37,114.29,12.7488]
[1743947179632,26.0,114.37,114.29,9.2488]
[1743947180342,32.26156157,114.39,114.29,15.3734]
[1743947180529,26.0,114.35,114.29,9.2488]
[1743947181215,26.0,114.37,114.29,9.2488]
[1743947181738,26.0,114.35,114.29,9.2488]
[1743947182124,32.1205,114.37,114.29,9.2488]
[1743947182325,26.0,114.34,114.29,9.2488]
[1743947182939,6.54678471,114.38,114.29,9.2488]
[1743947183127,6.1203,114.38,114.29,9.2488]
[1743947183446,26.0,114.35,114.29,9.2488]
[1743947183916,15.2945,114.42,114.29,15.3735]
[1743947184118,0.14216157,114.4,114.29,15.3735]
[1743947184520,26.0,114.38,114.29,15.3735]
[1743947184922,24.76794886,114.41,114.29,15.3735]
[1743947185121,0.14216157,114.4,114.29,15.3735]
[1743947185450,6.1167,114.44,114.32,6.1231]
[1743947185638,0.14216157,114.43,114.33,5.012]
[1743947185822,26.0,114.41,114.33,5.012]
[1743947186425,26.0,114.41,114.33,4.012]
[1743947186857,26.0,114.41,114.34,12.9514]
[1743947187063,26.0,114.42,114.34,12.9514]
[1743947187359,6.1163,114.45,114.34,12.9514]
[1743947187536,6.1158,114.46,114.35,25.055472]
[1743947188025,6.1158,114.46,114.35,6.1215]
[1743947188221,0.14216157,114.45,114.34,19.0733]
[1743947188551,26.0,114.43,114.34,12.9514]
[1743947188847,26.0,114.41,114.3,6.1242]
[1743947189048,26.0,114.41,114.31,30.0]
[1743947189551,26.0,114.37,114.32,4.6945]
[1743947189726,26.0,114.36,114.32,4.6945]
[1743947191035,6.1178,114.42,114.32,4.6945]
[1743947191244,26.0,114.39,114.32,4.6945]
[1743947191557,26.0,114.38,114.32,4.6945]
[1743947192247,32.1188,114.4,114.32,4.6945]
[1743947192943,26.0,114.38,114.32,4.6945]
[1743947193247,81.8,114.46,114.4,0.5]
[1743947193423,81.8,114.46,114.39,18.933972]
[1743947193631,81.8,114.46,114.39,25.052972]
[1743947194030,81.8,114.46,114.39,24.76864886]
[1743947194251,81.863,114.51,114.41,0.14216157]
[1743947194453,81.863,114.51,114.43,19.433972]
[1743947194753,81.863,114.51,114.44,0.14216157]
[1743947194935,81.863,114.51,114.44,24.35127284]
[1743947195133,81.863,114.51,114.43,18.933972]
[1743947195333,81.863,114.51,114.43,19.433972]
[1743947195542,81.863,114.51,114.45,4.7192]
[1743947195741,81.863,114.51,114.46,6.1156]
[1743947196048,0.063,114.51,114.47,18.933972]
[1743947196437,0.063,114.51,114.46,6.1156]
[1743947197346,0.063,114.51,114.45,29.769172]
[1743947198640,81.8,114.56,114.47,12.7348]
[1743947198834,81.8,114.56,114.48,0.28432314]
[1743947199034,81.8,114.56,114.47,12.7348]
[1743947199654,81.8,114.56,114.48,6.1146]
[1743947200456,81.8,114.55,114.47,18.8497]
[1743947200655,81.8,114.54,114.47,18.8497]
[1743947201041,81.8,114.53,114.47,12.7348]
[1743947201576,81.8,114.53,114.47,18.8499]
[1743947202061,81.8,114.53,114.48,18.933972]
[1743947203156,81.8,114.53,114.47,34.1377]
[1743947203357,81.8,114.53,114.47,18.8499]
[1743947204160,81.8,114.53,114.48,18.933972]
[1743947204362,81.8,114.53,114.48,19.433972]
[1743947204741,81.8,114.53,114.48,18.933972]
[1743947204948,81.8,114.53,114.48,19.433972]
[1743947205438,81.8,114.53,114.48,18.933972]
[1743947205842,81.8,114.53,114.49,6.114]
[1743947206464,81.8,114.53,114.48,6.1144]
[1743947206844,81.8,114.6,114.49,0.92648471]
[1743947207169,81.8,114.6,114.51,0.28432314]
[1743947207659,81.863,114.62,114.51,0.42648471]
[1743947207834,81.863,114.62,114.52,6.1124]
[1743947208666,81.863,114.62,114.54,12.674]
[1743947209857,81.863,114.62,114.55,6.1108]
[1743947210272,81.863,114.62,114.54,18.7851]
[1743947211164,0.063,114.62,114.55,0.92648471]
[1743947211869,0.063,114.62,114.56,6.1103]
[1743947212241,0.063,114.62,114.54,18.7852]
[1743947212445,26.063,114.62,114.54,18.7852]
[1743947212665,26.063,114.62,114.54,12.674]
[1743947212965,107.8,114.61,114.54,12.674]
[1743947214244,113.9078,114.61,114.54,12.674]
[1743947214744,113.9079,114.61,114.54,12.674]
[1743947215562,107.8,114.61,114.54,12.674]
[1743947215766,81.8,114.6,114.54,12.674]
[1743947216366,87.9082,114.6,114.54,12.674]
[1743947217053,0.063,114.62,114.55,6.1108]
[1743947217471,26.063,114.62,114.54,18.7851]
[1743947217970,0.063,114.62,114.55,0.28432314]
[1743947218151,0.063,114.62,114.56,6.1103]
[1743947220159,0.063,114.62,114.58,6.1092]
[1743947221959,0.063,114.62,114.59,13.3]
[1743947222157,0.063,114.62,114.6,6.1082]
[1743947222592,0.063,114.62,114.6,11.1398]
[1743947224487,0.063,114.62,114.61,0.28432314]
[1743947224647,81.8,114.7,114.61,18.933972]
[1743947225073,81.8,114.7,114.62,0.14216157]
[1743947225263,81.8,114.7,114.64,0.28432314]
[1743947225586,18.85481043,114.74,114.64,0.28432314]
[1743947225770,0.063,114.74,114.64,19.07613357]
[1743947226156,0.063,114.74,114.66,0.28432314]
[1743947226474,0.063,114.74,114.66,19.07613357]
[1743947227680,26.063,114.74,114.66,19.07613357]
[1743947227972,0.063,114.74,114.66,19.07613357]
[1743947228165,0.063,114.74,114.69,6.1034]
[1743947228373,0.063,114.74,114.69,19.4034]
[1743947228766,0.063,114.74,114.7,0.28432314]
[1743947228977,0.063,114.74,114.69,19.4034]
[1743947229981,0.063,114.74,114.7,0.28432314]
[1743947230283,0.063,114.74,114.71,6.1023]
[1743947230961,0.063,114.74,114.7,6.38692314]
[1743947231162,0.063,114.74,114.69,13.3]
[1743947232569,0.063,114.74,114.7,0.28432314]
[1743947233355,0.063,114.74,114.7,19.07613357]
[1743947234380,0.063,114.74,114.7,25.17853357]
[1743947234584,0.063,114.78,114.7,25.17853357]
[1743947234879,0.063,114.78,114.7,40.43563357]
[1743947235480,0.063,114.78,114.72,0.28432314]
[1743947235695,0.063,114.78,114.75,0.28432314]
[1743947236686,6.0942,114.87,114.77,19.07613357]
[1743947236990,21.4942,114.87,114.77,19.07613357]
[1743947237293,26.0,114.84,114.75,0.28432314]
[1743947238074,0.063,114.78,114.75,0.28432314]
[1743947238479,0.063,114.78,114.73,28.0807]
[1743947238684,0.063,114.78,114.74,0.28432314]
[1743947238869,0.063,114.78,114.73,28.0807]
[1743947239067,0.063,114.78,114.73,12.6607]
[1743947241474,0.063,114.78,114.74,0.42648471]
[1743947241675,0.063,114.78,114.74,19.07613357]
[1743947241878,14.323,114.81,114.74,19.07613357]
[1743947242780,20.4201,114.81,114.74,0.28432314]
[1743947242990,14.323,114.81,114.74,0.28432314]
[1743947243179,26.0,114.82,114.74,19.07613357]
[1743947243486,26.0,114.82,114.74,0.28432314]
[1743947243862,26.0,114.82,114.74,19.07613357]
[1743947244062,26.0,114.82,114.74,0.28432314]
[1743947244391,26.0,114.8,114.73,12.6607]
[1743947245194,21.058,114.79,114.71,4.5633]
[1743947245492,26.0,114.76,114.7,12.6607]
[1743947245672,26.0,114.76,114.67,4.5633]
[1743947245673,26.0,114.74,114.67,4.5633]
[1743947246775,26.0,114.76,114.68,0.42648471]
[1743947246977,26.0,114.76,114.68,19.07613357]
[1743947247173,26.0,114.76,114.68,25.17983357]
[1743947247379,26.0,114.75,114.68,25.17983357]
[1743947247580,26.0233,114.79,114.68,25.17983357]
[1743947247790,21.0582,114.79,114.68,25.17983357]
[1743947248096,21.0582,114.79,114.68,19.07613357]
[1743947248596,36.3034,114.79,114.68,19.07613357]
[1743947250705,26.0,114.75,114.67,4.5633]
[1743947250901,26.0,114.75,114.69,0.28432314]
[1743947251077,26.0,114.76,114.69,0.28432314]
[1743947252098,26.0,114.76,114.69,6.38752314]
[1743947252307,26.0,114.76,114.69,0.28432314]
[1743947252907,32.0997,114.76,114.69,0.28432314]
[1743947253110,26.0,114.76,114.69,0.28432314]
[1743947253799,32.0998,114.76,114.69,0.28432314]
[1743947254131,32.0998,114.76,114.67,4.5933]
[1743947254489,47.349,114.76,114.67,4.5933]
[1743947255088,19.07613357,114.75,114.67,4.5933]
[1743947255290,47.349,114.76,114.67,4.5933]
[1743947255699,32.0998,114.76,114.68,0.28432314]
[1743947256005,6.1618,114.78,114.68,19.07613357]
[1743947256891,0.063,114.78,114.69,12.5714]
[1743947257211,0.063,114.78,114.7,0.28432314]
[1743947257386,0.063,114.78,114.72,0.28432314]
[1743947257807,0.063,114.78,114.72,19.07613357]
[1743947258400,0.063,114.78,114.75,0.28432314]
[1743947258603,0.063,114.78,114.74,0.28432314]
[1743947258908,26.063,114.78,114.73,12.5714]
[1743947259291,14.28,114.77,114.73,12.5714]
[1743947259511,6.0996,114.76,114.73,12.5714]
[1743947259688,20.3793,114.77,114.73,12.5714]
[1743947260901,14.28,114.77,114.73,12.5714]
[1743947262509,0.063,114.78,114.73,12.5714]
[1743947262814,26.063,114.78,114.73,12.5714]
[1743947263015,6.1617,114.78,114.73,12.5714]
[1743947263194,0.063,114.78,114.73,12.5714]
[1743947264299,26.063,114.78,114.73,12.5714]
[1743947266695,32.1618,114.78,114.73,12.5714]
[1743947268090,26.0,114.77,114.73,12.5714]
[1743947268307,26.0,114.77,114.7,12.0482]
[1743947268510,39.84,114.77,114.7,12.0482]
[1743947269912,6.0996,114.76,114.7,12.0482]
[1743947272721,39.84,114.77,114.7,12.0482]
[1743947273413,45.9392,114.77,114.7,12.0482]
[1743947273722,39.84,114.77,114.7,12.0482]
[1743947273925,39.84,114.77,114.7,18.151]
[1743947274603,0.063,114.78,114.71,0.28432314]
[1743947275127,0.063,114.78,114.71,19.07613357]
[1743947275314,0.063,114.78,114.72,12.034]
[1743947275635,0.063,114.78,114.75,4.6439]
[1743947277123,0.063,114.78,114.72,16.6779]
[1743947277627,26.0,114.75,114.69,12.034]
[1743947277939,39.46,114.75,114.69,12.034]
[1743947278599,26.0,114.71,114.68,0.03]
[1743947280734,32.1025,114.71,114.68,0.03]
[1743947280948,26.0,114.73,114.68,0.03]
[1743947281449,13.3,114.74,114.68,0.03]
[1743947282122,19.3804,114.75,114.68,0.03]
[1743947282323,45.3804,114.75,114.68,0.03]
[1743947282526,13.28,114.75,114.68,0.03]
[1743947283028,19.3802,114.75,114.68,0.03]
[1743947283229,6.1002,114.75,114.68,0.03]
[1743947284140,19.3199,114.76,114.68,0.03]
[1743947286938,32.1011,114.74,114.68,0.03]
[1743947287322,47.3529,114.74,114.68,0.03]
[1743947290141,32.1011,114.74,114.68,0.03]
[1743947290544,12.96,114.73,114.68,0.03]
[1743947292548,19.0613,114.73,114.68,0.03]
[1743947295537,26.0,114.7,114.68,0.03]
[1743947297131,26.0,114.69,114.68,0.03]
[1743947297352,26.0,114.7,114.68,0.03]
[1743947297649,38.72,114.7,114.68,0.03]
[1743947297852,12.72,114.7,114.68,0.03]
[1743947298940,12.66,114.74,114.68,0.03]
[1743947300129,12.62,114.75,114.69,13.2782]
[1743947300330,12.6,114.76,114.69,13.2782]
[1743947301034,12.6,114.76,114.7,6.38712314]
[1743947301229,12.58,114.77,114.72,0.28432314]
[1743947301436,0.063,114.78,114.72,0.28432314]
[1743947302343,0.063,114.78,114.73,13.2782]
[1743947302934,0.063,114.78,114.74,19.07613357]
[1743947303245,0.063,114.78,114.75,6.1002]
[1743947304140,0.063,114.78,114.76,4.98332314]
[1743947305055,0.063,114.78,114.77,6.38342314]
[1743947305258,0.063,114.78,114.77,19.66162314]
[1743947305462,0.063,114.81,114.77,19.66162314]
[1743947306438,0.063,114.81,114.77,13.2782]
[1743947306949,26.0,114.8,114.74,13.2782]
[1743947307336,0.063,114.81,114.74,19.3785]
[1743947308461,0.063,114.81,114.74,13.2782]
[1743947308672,26.0,114.8,114.74,13.2782]
[1743947309038,26.0,114.8,114.74,19.3788]
[1743947310362,26.0,114.8,114.74,13.2782]
[1743947310660,26.0,114.79,114.74,13.2782]
[1743947310862,12.26,114.78,114.74,13.2782]
[1743947312047,0.063,114.81,114.74,19.3787]
[1743947312239,26.0,114.8,114.74,19.3787]
[1743947312440,26.0,114.8,114.75,0.28432314]
[1743947313133,26.0,114.8,114.74,19.3787]
[1743947313767,26.0,114.8,114.75,0.28432314]
[1743947313955,26.063,114.81,114.75,19.07613357]
[1743947314156,0.063,114.81,114.75,19.07613357]
[1743947314551,26.063,114.81,114.75,19.07613357]
[1743947315762,0.063,114.81,114.75,52.52633357]
[1743947316060,0.063,114.81,114.77,19.07613357]
[1743947316969,0.063,114.81,114.8,0.28432314]
[1743947317870,0.063,114.81,114.8,25.17363357]
[1743947318283,12.06,114.88,114.82,0.28432314]
[1743947319360,26.0,114.86,114.81,12.4216]
[1743947319555,26.0,114.85,114.81,12.4216]
[1743947319883,26.0,114.84,114.81,12.4216]
[1743947320473,26.0,114.85,114.81,12.4216]
[1743947320676,26.0,114.85,114.81,18.5185]
[1743947321553,26.0,114.85,114.82,0.28432314]
[1743947321753,81.8,114.88,114.82,0.28432314]
[1743947321977,93.7,114.88,114.82,6.38062314]
[1743947323560,93.7,114.88,114.82,0.28432314]
[1743947323964,0.063,114.9,114.84,0.14216157]
[1743947324171,0.063,114.9,114.83,5.0508]
[1743947324373,26.0,114.88,114.83,5.0508]
[1743947324987,26.0,114.89,114.83,5.0508]
[1743947325583,26.0,114.88,114.83,5.0508]
[1743947327491,26.0,114.88,114.84,0.28432314]
[1743947327789,30.0,114.85,114.84,0.28432314]
[1743947327957,30.0,114.85,114.84,6.37972314]
[1743947328365,30.0,114.85,114.84,0.28432314]
[1743947328667,26.0,114.89,114.84,0.28432314]
[1743947329465,26.0,114.89,114.84,19.07613357]
[1743947330052,26.0,114.89,114.84,25.17143357]
[1743947331358,0.063,114.9,114.84,25.17143357]
[1743947331557,0.063,114.9,114.86,0.28432314]
[1743947331782,30.0,114.87,114.86,0.28432314]
[1743947332358,30.0,114.87,114.85,13.2012]
[1743947334082,30.0,114.87,114.85,19.2958]
[1743947334283,30.0,114.87,114.86,25.17043357]
[1743947335162,16.6667,114.87,114.86,25.17043357]
[1743947335754,0.063,114.9,114.86,25.17043357]
[1743947336758,0.063,114.9,114.86,6.0943]
[1743947336981,0.063,114.9,114.87,19.07613357]
[1743947337182,30.0,114.88,114.87,0.42648471]
[1743947337386,30.0,114.88,114.87,19.07613357]
[1743947337674,11.6132,114.88,114.87,23.44891043]
[1743947337881,11.6132,114.88,114.87,23.73323357]
[1743947338070,11.6132,114.88,114.86,24.74394886]
[1743947338280,0.063,114.9,114.86,24.74394886]
[1743947340662,26.063,114.9,114.85,13.2012]
[1743947341170,0.063,114.9,114.86,18.79181043]
[1743947341370,0.063,114.9,114.87,0.28432314]
[1743947341571,30.0,114.88,114.87,0.28432314]
[1743947342060,0.063,114.9,114.87,0.28432314]
[1743947342686,0.063,114.9,114.88,0.14216157]
[1743947342880,30.0,114.89,114.88,0.14216157]
[1743947344591,0.063,114.9,114.89,0.28432314]
[1743947345088,0.063,114.9,114.89,25.16883357]
[1743947345665,0.063,114.9,114.89,19.07613357]
[1743947345875,0.063,114.9,114.87,0.28432314]
[1743947346082,30.063,114.9,114.87,0.14216157]
[1743947346461,30.063,114.9,114.87,0.42648471]
[1743947346698,30.063,114.9,114.87,19.07613357]
[1743947346985,30.063,114.9,114.87,6.37792314]
[1743947347177,30.063,114.9,114.88,0.42648471]
[1743947350594,30.063,114.9,114.89,19.07613357]
[1743947351003,30.063,114.9,114.89,6.51918471]
[1743947351572,30.063,114.9,114.89,25.16883357]
[1743947352209,0.063,114.9,114.89,25.16883357]
[1743947353108,0.063,114.93,114.91,0.14216157]
[1743947353280,30.0,114.92,114.91,0.14216157]
[1743947354212,24.918,114.92,114.91,0.14216157]
[1743947354499,0.063,114.93,114.92,71.23613357]
[1743947354883,0.063,114.93,114.92,45.07613357]
[1743947355083,0.063,114.93,114.92,77.32723357]
[1743947356102,0.063,114.93,114.92,51.16723357]
[1743947356402,0.063,114.93,114.92,25.16723357]
[1743947358987,85.6297,115.01,114.93,19.07613357]
[1743947359903,85.6297,115.01,114.95,19.07613357]
[1743947360209,30.0,114.96,114.95,19.07613357]
[1743947360922,0.063,115.02,114.95,19.07613357]
[1743947361110,0.063,115.02,114.95,32.03653357]
[1743947361994,4.8533,115.02,114.95,19.07613357]
[1743947362396,16.1333,115.02,114.95,19.07613357]
[1743947362712,4.8533,115.02,114.95,6.51598471]
[1743947363916,30.0,114.96,114.95,6.51598471]
[1743947367197,30.0,114.96,114.95,0.14216157]
[1743947367396,30.0,114.96,114.94,0.14216157]
[1743947367921,30.0,114.96,114.94,0.42648471]
[1743947368897,30.0,114.96,114.94,6.51648471]
[1743947369327,30.03,114.96,114.94,6.51648471]
[1743947373114,30.03,114.96,114.94,31.91648471]
[1743947373115,5.763e-05,114.96,114.94,31.91648471]
[1743947373323,0.063,115.02,114.99,19.07613357]
[1743947373706,0.063,115.02,114.95,27.1908]
[1743947373928,0.063,115.02,114.97,0.28432314]
[1743947375227,0.063,115.02,115.0,0.28432314]
[1743947376429,0.063,115.02,115.01,24.73604886]
[1743947376924,0.063,115.02,115.01,25.16253357]
[1743947377136,0.063,115.02,115.01,19.07613357]